Cogmind - Beta 11 *** ADVENTURER MODE // 2022.04.15 @ 21:02:31 Player: Biby Result: Self-destructed Performance ------------- Evolutions (1) 500 Regions Visited (2) 400 Robots Destroyed (7) 35 Value Destroyed (76) 76 Prototype IDs (0) 0 Alien Tech Used (0) 0 Bonus (0) 0 TOTAL SCORE: 1011 Bonus ------- None Cogmind --------- Core Integrity 371/400 Matter 224/300 Energy 125/125 System Corruption 0% Temperature Cool (37) Movement Flying (120) Ox1 Location -9/Materials Parts ------- > --- POWER (1) -------- Light Ion Engine > --- PROPULSION (3) --- Flight Unit > --- UTILITY (3) ------ Visual Processing Unit Signal Interpreter Terrain Scanner > --- WEAPON (2) ------- Medium Laser > --- INVENTORY (5) ---- Light Ion Engine Light Treads Light Treads Compact Wheel Light Assault Rifle Peak State ------------ > --- POWER ------------ Light Ion Engine > --- PROPULSION ------- Flight Unit Flight Unit > --- UTILITY ---------- Visual Processing Unit Signal Interpreter Terrain Scanner > --- WEAPON ----------- Medium Laser > --- INVENTORY -------- Light Ion Engine Light Treads Light Treads Compact Wheel Light Assault Rifle [Rating: 8] Favorites ----------- Power Light Ion Engine Engine Light Ion Engine Propulsion Flight Unit Leg Aluminum Leg Flight Unit Flight Unit Utility Small Storage Unit Device Terrain Scanner Storage Small Storage Unit Processor Signal Interpreter Weapon Medium Laser Energy Gun Medium Laser Ballistic Gun Light Assault Rifle Build | -11 -10 -9 ------- Run | Scr Mat Mat Slots Evolved 2 | . . 2 Power . | . . . Propulsion 1 | . . 1 Utility 1 | . . 1 Weapon . | . . . Parts Attached 14 | 4 5 5 Power 2 | 1 . 1 Engine 2 | 1 . 1 Core . | . . . Reactor . | . . . Propulsion 4 | 2 2 . Treads . | . . . Leg 2 | 2 . . Wheel . | . . . Hover . | . . . Flight 2 | . 2 . Utility 4 | 1 . 3 Device 1 | . . 1 Storage 1 | 1 . . Processor 2 | . . 2 Hackware . | . . . Protection . | . . . Artifact . | . . . Weapon 4 | . 3 1 Energy Gun 3 | . 2 1 Energy Cannon . | . . . Ballistic Gun 1 | . 1 . Ballistic Cannon . | . . . Launcher . | . . . Special Weapon . | . . . Impact Weapon . | . . . Slashing Weapon . | . . . Piercing Weapon . | . . . Special Melee Weapon . | . . . Unidentified Prototypes . | . . . Parts Lost 1 | . . 1 Power . | . . . Propulsion 1 | . . 1 Utility . | . . . Weapon . | . . . Highest Loss Streak 1 | . . 1 To Critical Strikes . | . . . Average Slot Usage (%) 63 | . 60 67 Engine 12 | . 14 11 Leg 9 | . 16 . Flight 15 | . 11 21 Device 3 | . . 8 Storage 9 | . 14 3 Processor 6 | . . 15 Energy Gun 4 | . 2 7 Naked Turns . | . . . Heaviest Build 9 | 8 9 9 Greatest Support 20 | 20 20 8 Greatest Overweight (x) 2 | 2 1 1 Average Overweight (x) . | . . . Largest Inventory Capacity 8 | 8 8 8 Average Capacity 7 | 7 8 5 Most Carried 8 | 8 8 8 Average Carried 6 | 5 7 5 Final Capacity 8 | 8 8 5 Final Carried 8 | 8 8 5 Class Distribution -------------------- 100% | Mutant Dominant Class ---------------- Mutant | -10/Materials Mutant | -9/Materials Resources | -11 -10 -9 ----------- Run | Scr Mat Mat Matter Collected 259 | 213 31 15 Remotely . | . . . Salvage Created 103 | . 48 55 Parts 14 | . 7 7 Haulers Intercepted . | . . . Recyclers Shooed 1 | . 1 . Parts Field Recycled . | . . . Retrieved Matter . | . . . Parts Self-Destructed . | . . . Prevented . | . . . Kills | -11 -10 -9 ------- Run | Scr Mat Mat Combat Hostiles Destroyed 6 | . 3 3 Guns 5 | . 3 2 Classes Destroyed 2 | . 1 1 Watcher 1 | . . 1 Swarmer 6 | . 3 3 Best Kill Streak 4 | . 3 4 Combat Bots Only 3 | . 3 3 Max Kills in Single Turn 1 | . 1 1 Gunslinging . | . . . Exploded . | . . . Melee . | . . . Uniques/NPCs Destroyed . | . . . Combat | -11 -10 -9 -------- Run | Scr Mat Mat Damage Taken 221 | . 77 144 Core 48 | . 19 29 Absorbed by Shields . | . . . Core Remaining (%) 96 | 100 92 . Volleys Fired 29 | . 11 18 Largest 1 | . 1 1 Hottest 50 | . 40 50 Shots Fired 29 | . 11 18 Gun 29 | . 11 18 Cannon . | . . . Launcher . | . . . Special . | . . . Kinetic . | . . . Thermal 29 | . 11 18 Explosive . | . . . Electromagnetic . | . . . Robot Hit Streak 5 | . 3 5 Robot Miss Streak 2 | . 1 2 Penetration Max . | . . . Secondary Targets . | . . . Shots Hit Robots 19 | . 7 12 Core Hits 7 | . 4 3 Critical Kills . | . . . Critical Parts Destroyed . | . . . Critical Strikes 3 | . . 3 Burn 3 | . . 3 Melee Attacks . | . . . Impact . | . . . Slashing . | . . . Piercing . | . . . Sneak Attacks . | . . . Combat Hostiles . | . . . Follow-up Attacks . | . . . Damage Inflicted 241 | . 79 162 Guns 241 | . 79 162 Cannons . | . . . Explosions . | . . . Melee . | . . . Ramming . | . . . Kinetic . | . . . Thermal 241 | . 79 162 Explosive . | . . . Electromagnetic . | . . . Impact . | . . . Slashing . | . . . Piercing . | . . . Highest Corruption . | . . . Average Corruption . | . . . Corruption Purged . | . . . Corruption Blocked . | . . . Overload Shots . | . . . Overflow Damage . | . . . Projectiles . | . . . Explosions . | . . . Melee . | . . . Knockbacks . | . . . Impact . | . . . Kinetic . | . . . Secondary . | . . . Self-Inflicted Damage . | . . . Shots . | . . . Rammed . | . . . Targets Rammed . | . . . Kicked . | . . . Crushed . | . . . Highest Temperature 98 | . . 98 Average Temperature 39 | . . 39 Received Heat Transfer 27 | . . 27 Siege Activations . | . . . Robots Corrupted . | . . . Combat Hostiles . | . . . Parts Fried . | . . . Impact Corruptions . | . . . Robots Melted 1 | . . 1 Combat Hostiles 1 | . . 1 Parts Melted 1 | . . 1 Heat Transferred 878 | . 175 703 Parts Sabotaged . | . . . Parts Stolen . | . . . Parts Stripped . | . . . Power Chain Reactions . | . . . Missiles Intercepted . | . . . Alert | -11 -10 -9 ------- Run | Scr Mat Mat Peak Influence 141 | . 96 141 Initial 34 | . . 34 Average 55 | . 43 96 Maximum Alert Level . | . . . Low Security (%) 100 | 100 100 100 Level 1 . | . . . Level 2 . | . . . Level 3 . | . . . Level 4 . | . . . Level 5 . | . . . High Security . | . . . Max Security . | . . . Squads Dispatched . | . . . Investigation . | . . . Extermination . | . . . Reinforcement . | . . . Assault . | . . . Garrison . | . . . Intercept . | . . . Searches Triggered . | . . . Construction Impeded . | . . . Haulers Reinforced . | . . . Active Scanning Responses . | . . . Cargo Convoy Interrupts . | . . . Stealth | -11 -10 -9 --------- Run | Scr Mat Mat Distress Signals 1 | . 1 . Communications Jammed . | . . . Distress Signals . | . . . Times Spotted 11 | . 5 6 Peak Tracking Total 5 | . 5 3 Tactical Retreats 1 | . 1 . Traps | -11 -10 -9 ------- Run | Scr Mat Mat Traps Triggered . | . . . Indirectly . | . . . Trap Hack Attempts . | . . . Triggered . | . . . Disarmed . | . . . Reprogrammed . | . . . Reused . | . . . Traps Extracted . | . . . Installed . | . . . Triggered . | . . . Machines | -11 -10 -9 ---------- Run | Scr Mat Mat Machines Disabled . | . . . Max in Single Turn . | . . . Machines Sabotaged . | . . . Garrisons Compromised . | . . . Overloaded Fab Kills . | . . . Hacking | -11 -10 -9 --------- Run | Scr Mat Mat Machines Accessed 3 | . 3 . Terminals 3 | . 3 . Fabricators . | . . . Repair Stations . | . . . Recycling Units . | . . . Scanalyzers . | . . . Garrison Access . | . . . Total Hacks 8 | . 8 . Successful 8 | . 8 . Failed . | . . . Catastrophic . | . . . Database Lockouts . | . . . Manual . | . . . Terminals 8 | . 8 . Fabricators . | . . . Repair Stations . | . . . Recycling Units . | . . . Scanalyzers . | . . . Garrison Access . | . . . Terminal Hacks 8 | . 8 . Record 6 | . 6 . Robot Analysis 1 | . 1 . Level Access Points 1 | . 1 . Fabricator Hacks . | . . . Repair Station Hacks . | . . . Recycling Unit Hacks . | . . . Scanalyzer . | . . . Garrison Access Hacks . | . . . Unauthorized Hacks . | . . . Terminals . | . . . Fabricators . | . . . Repair Stations . | . . . Recycling Units . | . . . Scanalyzers . | . . . Garrison Access . | . . . Data Cores Recovered . | . . . Used . | . . . Hacking Detections . | . . . Full Trace Events . | . . . Feedback Events . | . . . Feedback Blocked . | . . . Robot Schematics Acquired . | . . . Robots Built . | . . . Authchips . | . . . Time . | . . . Total Robot Build Rating . | . . . Part Schematics Acquired . | . . . Parts Built . | . . . Authchips . | . . . Time . | . . . Total Part Build Rating . | . . . Parts Repaired . | . . . Time . | . . . Parts Recycled . | . . . Recycled Matter . | . . . Retrieved Matter . | . . . Retrieved Components . | . . . Parts Scanalyzed . | . . . Part Schematics Acquired . | . . . Parts Damaged . | . . . Bothacking | -11 -10 -9 ------------ Run | Scr Mat Mat Used RIF Installer . | . . . Robots Hacked . | . . . Non-combat . | . . . Combat . | . . . Robot Hacks Applied . | . . . Relay Couplers Released . | . . . Fabnet Peak Effective % . | . . . Robots Rewired . | . . . Allies Hacked . | . . . Hacks Repelled . | . . . Allies | -11 -10 -9 -------- Run | Scr Mat Mat Total Allies . | . . . Largest Group . | . . . Highest-Rated Group . | . . . Highest-Rated Ally . | . . . Total Orders . | . . . Ally Attacks . | . . . Total Damage . | . . . Kills . | . . . Allies Corrupted . | . . . Allies Melted . | . . . Intel | -11 -10 -9 ------- Run | Scr Mat Mat Robot Analysis Total 1 | . 1 . Derelict Logs Recovered . | . . . Drone Launches . | . . . Drone Recoveries . | . . . Exploration | -11 -10 -9 ------------- Run | Scr Mat Mat Turns Passed 500 | 73 252 175 Spaces Moved 627 | 52 234 341 Core 11 | 11 . . Treads . | . . . Legs 103 | 41 62 . Wheels . | . . . Hover . | . . . Flight 513 | . 172 341 Fastest Speed 37 | 50 37 37 Average Speed 52 | 110 60 38 Slowest Speed 150 | 150 130 120 Overloaded Moves . | . . . Propulsion Burnouts . | . . . Robots Hopped 2 | . 2 . Cave-ins Triggered . | . . . Exploration Rate (%) 20 | 3 40 17 Regions Visited 2 Branch Regions . Pre-discovered Areas . | . . . Known Exits Taken 1 | . 1 . Unknown Exits Taken 1 | 1 . . Scrap Searched . | . . . Spaces Dug . | . . . Terrain Destroyed . | . . . Melee . | . . . Projectile . | . . . AOE . | . . . Terrain Rammed . | . . . Walls Destroyed . | . . . Machines Disabled . | . . . Actions | -11 -10 -9 --------- Run | Scr Mat Mat Total 765 | 67 333 365 Wait 80 | . 80 . Move 621 | 51 229 341 Hop 2 | . 2 . Pick Up 13 | 12 1 . Fast Attach 6 | . 2 4 Attach 7 | 4 3 . Detach 2 | . 2 . Swap 1 | . . 1 Drop 4 | . 3 1 Fire 29 | . 11 18 Melee . | . . . Ram . | . . . Kick . | . . . Crush . | . . . Escape Stasis . | . . . Rewire . | . . . Trap . | . . . Miscellaneous . | . . . Route ------- -11/Scrapyard -10/Materials (discovered 3 exits: *Mat x3) -9/Materials History --------- Turn | Location | Event 14 | -11/Scrapyard | Discovered new exit (range 15) 74 | -11/Scrapyard | Entered Materials 285 | -10/Materials | Discovered new exit (range 15) 309 | -10/Materials | Build established: Mutant 323 | -10/Materials | Identified exit to Materials 326 | -10/Materials | Entered another Materials area 326 | -9/Materials | Evolved 2 slots: Propulsion x1, Utility x1 501 | -9/Materials | Self-destructed Last Messages --------------- 00365_ Acquired Terrain Scanner. 00372_ Acquired Signal Interpreter. The Signal Interpreter is a processor, a type of utility that is destroyed if removed (these are marked with a colon in the parts list, as a reminder). 00373_ Dropped Sml. Storage Unit. 00374_ Acquired Med. Laser. 00377_ W-16 Scout destroyed. 00381_ Acquired Visual Processing Unit. 00382_ Acquired 15 matter. 00395_ S-10 Pest destroyed. 00399_ S-10 Pest suffers critical hit (Burn). 00409_ S-10 Pest overheating. 00411_ Destroyed Flight Unit. 00411_ S-10 Pest suffers critical hit (Burn). 00411_ S-10 Pest critical meltdown. 00411_ Lgt. Ion Engine melted. 00434_ Connecting with Scanalyzer... 00450_ K-01 Serf collects debris. 00494_ Y-45 Defender suffers critical hit (Burn). 00495_ Flight Unit destroyed. Map ----- +----------------------------------------------------+ | | | ?????????????????????????????????????????????? | | ?????????????????????????????????????????????? | | ???????????????????????#######?##????????????? | | ???????????????????????# """ #????????????? | | ???????????????????????# """"" #????????????? | | ???????????????######### """"" #????????????? | | ???????????????# # """"" #????????????? | | ???????????????# + """ #????????????? | | ???????????????# # #????????????? | | ???????????????##### # #????????????? | | ?????????########### # #????????????? | | ?????????# # # #????????????? | | ?????????# / ######+##########?????? | | ?????????# # #????# ## #???#?? | | ???????### # #????# ## #?????? | | ?????????########### ##???# ## #?????? | | ?????????# =!=# ##### ## """"" #?????? | | ?????????# # # """"" #?????? | | ?????????# + *= + """"" #?????? | | ?????????# # = # """"" #?????? | | ?????????# # Y###### # """"" #?????? | | ?????????# ! ### #????# # """"" # ? ? | | ?????????# !! #?# ##???# # """"" # ??? | | ?????????# !! ### #????# # # #?? | | ?????????# #?#@ #????# ######### ##? | | ?????????##########?# #????# #??????? #? | | ????????????????#???# #????# ##?????? #? | | ????????????????#???# #????# #??#?#?? ?? | | ????????????????????# #?#??# #?#????? ?? | | ??????????????#????## #????# #??????? ?? | | ????????????????????# #????# #???????# #?? | | ?????????????#??????# #??###+######### #?? | | ????????????????????# #??# # #?? | | ????????????????????# #??# "" # #?? | | ????????????????????# #??# """ # #?? | | ????????????????????# #??# """ S" # #?? | | ????????????????????#^^^#??# """ # #?? | | ????????????????????# ##?# """ ! / +?? | | ????????"??????????## #??# # #?? | | ?????????????????#??# #??############# #?? | | ????????????????????# #?????????????? #? | | ????????????????????# [#??????"??????? | | ???????????? ???????#=%%#?????????????# T | | ????????????????????#% =+?????????????# | | ????????????????????# #???? ????????# ## | | ????????????????????# #?????? ??????#######? | | ????????????????????# #????????????????????? | | ????????????????????# #????????????????????? | | ????????????????????# #????????????????????? | +----------------------------------------------------+ Best States ------------- Heat Dissipation 28 Energy Generation 10 Energy Capacity 125 Matter Stores 273 Matter Capacity 300 Sight Range 18 Terrain Scan Range 14 Terrain Scan Density 10 Resistance: KI 20 Resistance: TH 20 Resistance: EX 20 Resistance: EM 20 Resistance: I 20 Resistance: S 20 Resistance: P 20 Evasion (%) 62 Offensive Hacking 10 Item Schematics ----------------- None Robot Schematics ------------------ None Fabricated ------------ Nothing Alien Tech Used ----------------- None Achievements -------------- None Challenges ------------ None Game ------ Seed RocketOmegaWheel Manual? 0 Play Time 00:15:14 Cumulative 4.2 hours Start 2022.04.15 @ 20:16:07 End 2022.04.15 @ 21:02:31 Sessions 3 Manual Loads 0 Difficulty Adventurer Special Mode None Game No. 7 Rogue 4 Adventurer 2 Explorer 1 Win Type - Total 0 Types 0/0/0/0/0/0/0/0/0 Lore% 11 Gallery% 9 Achievement% 10 Wizard Run 0 Options --------- ASCII 0 Keyboard 0 Movement Mouse Keybinds 0 Fullscreen 1 Font 12/Smallcaps Map View 83x54 Tactical HUD 1 Map Filters NONE Filters NONE Steam 0 RUN: 6f63f333-1b0d-4564-b15b-a6799273d308